fUSD/lending_fUSD_20260607
["ID","MTS","AMOUNT","RATE_DAILY","PERIOD"]
[424367646,1780792238000,-500.0,0.00013698,2]
[424367645,1780792238000,-500.0,0.00013698,2]
[424367647,1780792238000,-456.53966443,0.00013698,2]
[424367578,1780792238000,-561.06634777,0.00013097,2]
[424367638,1780792238000,-181.71,0.00013698,2]
[424367620,1780792238000,-454.0,0.00013675,2]
[424367634,1780792238000,-500.0,0.00013698,2]
[424367622,1780792238000,-500.0,0.00013698,2]
[424367584,1780792238000,-250.0,0.00013098,2]
[424367621,1780792238000,-452.0,0.00013675,2]
[424367580,1780792238000,-200.52078006,0.00013098,2]
[424367590,1780792238000,-11676.33049631,0.00013267,2]
[424367592,1780792238000,-18541.2046349,0.00013267,2]
[424367594,1780792238000,-2000.0,0.00013298,2]
[424367600,1780792238000,-132330.42600452,0.00013458,2]
[424367596,1780792238000,-500.0,0.00013379,2]
[424367598,1780792238000,-166.66,0.00013442,2]
[424367603,1780792238000,-150.0,0.00013488,2]
[424367605,1780792238000,-150.0,0.00013488,2]
[424367604,1780792238000,-150.0,0.00013488,2]
[424367606,1780792238000,-224.38985235,0.00013488,2]
[424367602,1780792238000,-454.0,0.00013458,2]
[424367607,1780792238000,-150.0,0.00013488,2]
[424367615,1780792238000,-11676.33049631,0.000135,2]
[424367616,1780792238000,-250.0,0.00013548,2]
[424367614,1780792238000,-150.0,0.00013488,2]
[424367617,1780792238000,-150.0,0.00013581,2]
[424367613,1780792238000,-150.0,0.00013488,2]
[424367611,1780792238000,-151.41923818,0.00013488,2]
[424367612,1780792238000,-203.77673036,0.00013488,2]
[424367609,1780792238000,-150.0,0.00013488,2]
[424367610,1780792238000,-169.15934622,0.00013488,2]
[424367608,1780792238000,-150.44031966,0.00013488,2]
[424367619,1780792238000,-150.0,0.00013675,2]
[424367689,1780792239000,-556.45,0.00013698,2]
[424367687,1780792239000,-500.0,0.00013698,2]
[424367690,1780792239000,-556.45,0.00013698,2]
[424367683,1780792239000,-500.0,0.00013698,2]
[424367684,1780792239000,-500.0,0.00013698,2]
[424367682,1780792239000,-500.0,0.00013698,2]
[424367685,1780792239000,-500.0,0.00013698,2]
[424367680,1780792239000,-500.0,0.00013698,2]
[424367681,1780792239000,-500.0,0.00013698,2]
[424367679,1780792239000,-500.0,0.00013698,2]
[424367688,1780792239000,-500.0,0.00013698,2]
[424367686,1780792239000,-500.0,0.00013698,2]
[424367692,1780792239000,-556.45,0.00013698,2]
[424367704,1780792239000,-502.77238855,0.00013698,2]
[424367705,1780792239000,-500.0,0.00013698,2]
[424367694,1780792239000,-556.45,0.00013698,2]
[424367696,1780792239000,-500.0,0.00013698,2]
[424367695,1780792239000,-556.45,0.00013698,2]
[424367698,1780792239000,-500.0,0.00013698,2]
[424367701,1780792239000,-500.0,0.00013698,2]
[424367700,1780792239000,-500.0,0.00013698,2]
[424367697,1780792239000,-500.0,0.00013698,2]
[424367699,1780792239000,-500.0,0.00013698,2]
[424367702,1780792239000,-500.0,0.00013698,2]
[424367703,1780792239000,-500.0,0.00013698,2]
[424367678,1780792239000,-500.0,0.00013698,2]
[424367691,1780792239000,-556.45,0.00013698,2]
[424367675,1780792239000,-500.0,0.00013698,2]
[424367650,1780792239000,-500.0,0.00013698,2]
[424367674,1780792239000,-457.12873569,0.00013698,2]
[424367648,1780792239000,-500.0,0.00013698,2]
[424367649,1780792239000,-500.0,0.00013698,2]
[424367652,1780792239000,-500.0,0.00013698,2]
[424367654,1780792239000,-500.0,0.00013698,2]
[424367651,1780792239000,-500.0,0.00013698,2]
[424367653,1780792239000,-500.0,0.00013698,2]
[424367657,1780792239000,-500.0,0.00013698,2]
[424367655,1780792239000,-500.45399039,0.00013698,2]
[424367656,1780792239000,-500.0,0.00013698,2]
[424367660,1780792239000,-500.0,0.00013698,2]
[424367662,1780792239000,-500.0,0.00013698,2]
[424367658,1780792239000,-500.0,0.00013698,2]
[424367677,1780792239000,-500.0,0.00013698,2]
[424367661,1780792239000,-500.0,0.00013698,2]
[424367663,1780792239000,-500.0,0.00013698,2]
[424367665,1780792239000,-500.0,0.00013698,2]
[424367659,1780792239000,-500.0,0.00013698,2]
[424367664,1780792239000,-500.0,0.00013698,2]
[424367667,1780792239000,-500.0,0.00013698,2]
[424367669,1780792239000,-500.0,0.00013698,2]
[424367668,1780792239000,-500.0,0.00013698,2]
[424367670,1780792239000,-500.0,0.00013698,2]
[424367671,1780792239000,-607.97,0.00013698,2]
[424367673,1780792239000,-500.0,0.00013698,2]
[424367672,1780792239000,-500.0,0.00013698,2]
[424367676,1780792239000,-500.0,0.00013698,2]
[424367666,1780792239000,-500.0,0.00013698,2]
[424367706,1780792239000,-500.0,0.00013698,2]
[424367693,1780792239000,-556.45,0.00013698,2]
[424367708,1780792239000,-500.0,0.00013698,2]
[424367740,1780792239000,-2313.79356356,0.00014,2]
[424367742,1780792239000,-197.09926948,0.00014049,2]
[424367741,1780792239000,-255.0,0.00014006,2]
[424367746,1780792239000,-150.0,0.00014177,2]
[424367743,1780792239000,-150.0,0.0001405,2]
[424367745,1780792239000,-150.0,0.00014143,2]
[424367744,1780792239000,-166.66,0.0001411,2]
[424367747,1780792239000,-150.0,0.00014177,2]
[424367749,1780792239000,-500.0,0.00014177,2]
[424367748,1780792239000,-200.0,0.00014177,2]
[424367750,1780792239000,-500.0,0.00014177,2]
[424367751,1780792239000,-500.0,0.00014177,2]
[424367739,1780792239000,-250.0,0.00014,2]
[424367752,1780792239000,-500.0,0.00014177,2]
[424367755,1780792239000,-150.0,0.00014177,2]
[424367757,1780792239000,-359.92465112,0.00014177,2]
[424367758,1780792239000,-150.0,0.00014177,2]
[424367754,1780792239000,-500.0,0.00014177,2]
[424367760,1780792239000,-500.0,0.00014177,2]
[424367756,1780792239000,-500.0,0.00014177,2]
[424367761,1780792239000,-150.0,0.00014177,2]
[424367759,1780792239000,-500.0,0.00014177,2]
[424367762,1780792239000,-500.0,0.00014177,2]
[424367764,1780792239000,-250.0,0.00014177,2]
[424367763,1780792239000,-500.0,0.00014177,2]
[424367765,1780792239000,-500.0,0.00014177,2]
[424367753,1780792239000,-150.0,0.00014177,2]
[424367737,1780792239000,-166.66,0.00013973,2]
[424367707,1780792239000,-500.0,0.00013698,2]
[424367735,1780792239000,-150.0,0.00013956,2]
[424367709,1780792239000,-500.0,0.00013698,2]
[424367710,1780792239000,-500.0,0.00013698,2]
[424367713,1780792239000,-200.0,0.00013699,2]
[424367711,1780792239000,-500.0,0.00013698,2]
[424367714,1780792239000,-166.66,0.00013699,2]
[424367715,1780792239000,-225.09,0.00013699,2]
[424367712,1780792239000,-548.14,0.00013699,2]
[424367733,1780792239000,-166.66,0.00013886,2]
[424367718,1780792239000,-781.58,0.00013699,2]
[424367717,1780792239000,-156.31,0.00013699,2]
[424367722,1780792239000,-300.0,0.00013778,2]
[424367720,1780792239000,-11676.33049631,0.00013733,2]
[424367725,1780792239000,-300.0,0.00013778,2]
[424367716,1780792239000,-187.57,0.00013699,2]
[424367721,1780792239000,-150.0,0.00013769,2]
[424367724,1780792239000,-300.0,0.00013778,2]
[424367734,1780792239000,-500.0,0.00013927,2]
[424367738,1780792239000,-40808.36294502,0.0001399,2]
[424367732,1780792239000,-152.0,0.00013879,2]
[424367731,1780792239000,-150.0,0.00013862,2]
[424367730,1780792239000,-150.0,0.00013862,2]
[424367736,1780792239000,-11676.33049631,0.00013967,2]
[424367729,1780792239000,-150.0,0.00013862,2]
[424367727,1780792239000,-166.66,0.00013836,2]
[424367726,1780792239000,-300.0,0.00013778,2]
[424367723,1780792239000,-300.0,0.00013778,2]
[424367719,1780792239000,-163.59,0.000137,2]
[424367728,1780792239000,-2000.0,0.00013856,2]
[424367809,1780792240000,-150.0,0.00014237,2]
[424367807,1780792240000,-500.0,0.00014201,2]
[424367806,1780792240000,-11676.33049631,0.000142,2]
[424367803,1780792240000,-1828.0,0.00014177,2]
[424367805,1780792240000,-1835.71235742,0.00014177,2]
[424367802,1780792240000,-1828.0,0.00014177,2]
[424367804,1780792240000,-1828.0,0.00014177,2]
[424367799,1780792240000,-1828.0,0.00014177,2]
[424367801,1780792240000,-1828.0,0.00014177,2]
[424367796,1780792240000,-1828.0,0.00014177,2]
[424367800,1780792240000,-1828.0,0.00014177,2]
[424367808,1780792240000,-150.0,0.00014237,2]
[424367830,1780792240000,-500.0,0.000147,5]
[424367812,1780792240000,-166.66,0.00014247,2]
[424367811,1780792240000,-150.0,0.00014237,2]
[424367810,1780792240000,-150.0,0.00014237,2]
[424367815,1780792240000,-278.0328432,0.00014328,2]
[424367816,1780792240000,-166.66,0.0001433,2]
[424367817,1780792240000,-150.0,0.00014331,2]
[424367814,1780792240000,-150.0,0.00014328,2]
[424367818,1780792240000,-166.66,0.00014384,2]
[424367822,1780792240000,-500.0,0.00014475,2]
[424367819,1780792240000,-2000.0,0.000144,5]
[424367820,1780792240000,-150.0,0.00014424,2]
[424367821,1780792240000,-11676.33049631,0.00014433,2]
[424367797,1780792240000,-1828.0,0.00014177,2]
[424367813,1780792240000,-150.0,0.00014328,2]
[424367795,1780792240000,-1828.0,0.00014177,2]
[424367782,1780792240000,-1828.0,0.00014177,2]
[424367788,1780792240000,-500.0,0.00014177,2]
[424367828,1780792240000,-150.0,0.00014612,2]
[424367767,1780792240000,-500.0,0.00014177,2]
[424367766,1780792240000,-500.0,0.00014177,2]
[424367768,1780792240000,-500.0,0.00014177,2]
[424367769,1780792240000,-500.0,0.00014177,2]
[424367770,1780792240000,-500.0,0.00014177,2]
[424367771,1780792240000,-500.0,0.00014177,2]
[424367773,1780792240000,-500.0,0.00014177,2]
[424367772,1780792240000,-1828.0,0.00014177,2]
[424367776,1780792240000,-150.0,0.00014177,2]
[424367774,1780792240000,-500.0,0.00014177,2]
[424367775,1780792240000,-1828.0,0.00014177,2]
[424367777,1780792240000,-500.0,0.00014177,2]
[424367779,1780792240000,-150.0,0.00014177,2]
[424367780,1780792240000,-1828.0,0.00014177,2]
[424367781,1780792240000,-150.0,0.00014177,2]
[424367778,1780792240000,-1828.0,0.00014177,2]
[424367783,1780792240000,-150.0,0.00014177,2]
[424367784,1780792240000,-1828.0,0.00014177,2]
[424367786,1780792240000,-500.0,0.00014177,2]
[424367785,1780792240000,-1828.0,0.00014177,2]
[424367787,1780792240000,-1828.0,0.00014177,2]
[424367790,1780792240000,-500.0,0.00014177,2]
[424367789,1780792240000,-1828.0,0.00014177,2]
[424367792,1780792240000,-1828.0,0.00014177,2]
[424367794,1780792240000,-1828.0,0.00014177,2]
[424367793,1780792240000,-1828.0,0.00014177,2]
[424367798,1780792240000,-1828.0,0.00014177,2]
[424367826,1780792240000,-150.0,0.00014612,2]
[424367791,1780792240000,-1828.0,0.00014177,2]
[424367827,1780792240000,-150.0,0.00014612,2]
[424367860,1780792240000,-500.0,0.00014999,2]
[424367859,1780792240000,-500.0,0.00014999,2]
[424367861,1780792240000,-500.0,0.00014999,2]
[424367885,1780792240000,-250.0,0.00014999,2]
[424367867,1780792240000,-500.0,0.00014999,2]
[424367864,1780792240000,-500.0,0.00014999,2]
[424367868,1780792240000,-500.0,0.00014999,2]
[424367865,1780792240000,-500.0,0.00014999,2]
[424367862,1780792240000,-500.0,0.00014999,2]
[424367866,1780792240000,-500.0,0.00014999,2]
[424367870,1780792240000,-500.0,0.00014999,2]
[424367863,1780792240000,-500.0,0.00014999,2]
[424367858,1780792240000,-500.0,0.00014999,2]
[424367869,1780792240000,-500.0,0.00014999,2]
[424367872,1780792240000,-500.0,0.00014999,2]
[424367882,1780792240000,-500.0,0.00014999,2]
[424367877,1780792240000,-500.0,0.00014999,2]
[424367879,1780792240000,-1500.0,0.00014999,2]
[424367880,1780792240000,-500.0,0.00014999,2]
[424367874,1780792240000,-500.0,0.00014999,2]
[424367876,1780792240000,-500.0,0.00014999,2]
[424367875,1780792240000,-500.0,0.00014999,2]
[424367878,1780792240000,-500.0,0.00014999,2]
[424367883,1780792240000,-500.0,0.00014999,2]
[424367881,1780792240000,-500.0,0.00014999,2]
[424367884,1780792240000,-500.0,0.00014999,2]
[424367871,1780792240000,-500.0,0.00014999,2]
[424367854,1780792240000,-256.65450026,0.00014986,2]
[424367873,1780792240000,-500.0,0.00014999,2]
[424367857,1780792240000,-344.77400983,0.0001499,2]
[424367852,1780792240000,-158.73968764,0.00014986,2]
[424367825,1780792240000,-500.0,0.000146,5]
[424367824,1780792240000,-150.0,0.00014518,2]
[424367823,1780792240000,-2500.0,0.000145,5]
[424367833,1780792240000,-195.194954,0.000147,2]
[424367832,1780792240000,-472.482865,0.000147,2]
[424367831,1780792240000,-457.925233,0.000147,2]
[424367841,1780792240000,-500.0,0.00014889,2]
[424367836,1780792240000,-150.0,0.00014705,2]
[424367835,1780792240000,-175.953031,0.000147,2]
[424367838,1780792240000,-166.66,0.00014774,2]
[424367840,1780792240000,-500.0,0.000148,5]
[424367834,1780792240000,-738.611806,0.000147,2]
[424367843,1780792240000,-120954.10573661,0.0001489,2]
[424367829,1780792240000,-11676.33049631,0.00014667,2]
[424367851,1780792240000,-151.5407187,0.00014986,2]
[424367842,1780792240000,-500.0,0.00014889,2]
[424367837,1780792240000,-500.0,0.00014749,2]
[424367846,1780792240000,-500.0,0.000149,5]
[424367847,1780792240000,-580.0618152,0.000149,2]
[424367844,1780792240000,-150.0,0.00014893,2]
[424367845,1780792240000,-197.09926948,0.000149,2]
[424367848,1780792240000,-10663.03698282,0.000149,2]
[424367850,1780792240000,-11676.33049631,0.000149,2]
[424367855,1780792240000,-160.88134904,0.00014986,2]
[424367839,1780792240000,-150.0,0.00014799,2]
[424367856,1780792240000,-344.77400983,0.0001499,2]
[424367853,1780792240000,-150.0,0.00014986,2]
[424367849,1780792240000,-25000.0,0.000149,3]
[424367911,1780792241000,-500.0,0.00014999,2]
[424367909,1780792241000,-500.0,0.00014999,2]
[424367921,1780792241000,-500.0,0.00014999,2]
[424367904,1780792241000,-500.0,0.00014999,2]
[424367913,1780792241000,-500.0,0.00014999,2]
[424367910,1780792241000,-500.0,0.00014999,2]
[424367912,1780792241000,-500.0,0.00014999,2]
[424367918,1780792241000,-500.0,0.00014999,2]
[424367916,1780792241000,-500.0,0.00014999,2]
[424367914,1780792241000,-500.0,0.00014999,2]
[424367917,1780792241000,-500.0,0.00014999,2]
[424367919,1780792241000,-500.0,0.00014999,2]
[424367906,1780792241000,-500.0,0.00014999,2]
[424367920,1780792241000,-500.0,0.00014999,2]
[424367915,1780792241000,-500.0,0.00014999,2]
[424367907,1780792241000,-500.0,0.00014999,2]
[424367898,1780792241000,-500.0,0.00014999,2]
[424367903,1780792241000,-500.0,0.00014999,2]
[424367886,1780792241000,-500.0,0.00014999,2]
[424367888,1780792241000,-500.0,0.00014999,2]
[424367892,1780792241000,-500.0,0.00014999,2]
[424367889,1780792241000,-500.0,0.00014999,2]
[424367891,1780792241000,-500.0,0.00014999,2]
[424367890,1780792241000,-500.0,0.00014999,2]
[424367908,1780792241000,-500.0,0.00014999,2]
[424367897,1780792241000,-500.0,0.00014999,2]
[424367893,1780792241000,-500.0,0.00014999,2]
[424367899,1780792241000,-500.0,0.00014999,2]
[424367900,1780792241000,-500.0,0.00014999,2]
[424367902,1780792241000,-500.0,0.00014999,2]
[424367901,1780792241000,-500.0,0.00014999,2]
[424367905,1780792241000,-500.0,0.00014999,2]
[424367895,1780792241000,-500.0,0.00014999,2]
[424367887,1780792241000,-500.0,0.00014999,2]
[424367922,1780792241000,-500.0,0.00014999,2]
[424367925,1780792241000,-500.0,0.00014999,2]
[424367939,1780792241000,-500.0,0.00014999,2]
[424367945,1780792241000,-500.0,0.00014999,2]
[424367946,1780792241000,-350.21230357,0.00014999,2]
[424367949,1780792241000,-300.0,0.00014999,2]
[424367950,1780792241000,-233.65988115,0.00015,2]
[424367951,1780792241000,-13897208.77854225,0.00015,2]
[424367940,1780792241000,-500.0,0.00014999,2]
[424367948,1780792241000,-666.0,0.00014999,2]
[424367953,1780792241000,-8864.27832712,0.000135,2]
[424367958,1780792241000,-54744.26322639,0.00015,2]
[424367957,1780792241000,-9077.54866152,0.00015,2]
[424367955,1780792241000,-729.70751305,0.000135,2]
[424367954,1780792241000,-8947.21879473,0.000135,2]
[424367956,1780792241000,-8214.07635157,0.00015,2]
[424367952,1780792241000,-1300.0,0.00015,2]
[424367938,1780792241000,-500.0,0.00014999,2]
[424367947,1780792241000,-300.0,0.00014999,2]
[424367942,1780792241000,-500.0,0.00014999,2]
[424367926,1780792241000,-500.0,0.00014999,2]
[424367923,1780792241000,-500.0,0.00014999,2]
[424367943,1780792241000,-500.0,0.00014999,2]
[424367928,1780792241000,-500.0,0.00014999,2]
[424367931,1780792241000,-500.0,0.00014999,2]
[424367930,1780792241000,-500.0,0.00014999,2]
[424367929,1780792241000,-500.0,0.00014999,2]
[424367933,1780792241000,-500.0,0.00014999,2]
[424367927,1780792241000,-500.0,0.00014999,2]
[424367934,1780792241000,-500.0,0.00014999,2]
[424367932,1780792241000,-500.0,0.00014999,2]
[424367937,1780792241000,-500.0,0.00014999,2]
[424367941,1780792241000,-500.0,0.00014999,2]
[424367924,1780792241000,-500.0,0.00014999,2]
[424367935,1780792241000,-500.0,0.00014999,2]
[424367944,1780792241000,-500.0,0.00014999,2]
[424367936,1780792241000,-500.0,0.00014999,2]
[424367968,1780792243000,-2148.02575463,0.00015,2]
[424367967,1780792243000,-152.0,0.00014452,2]
[424367966,1780792243000,-152.0,0.00014448,2]
[424367965,1780792243000,-152.0,0.00014448,2]
[424367975,1780792262000,152.0,0.00029721,120]
[424367977,1780792263000,152.0,0.00029742,120]
[424367976,1780792263000,152.0,0.00029721,120]
[424367979,1780792266000,152.0,0.00029763,120]
[424367978,1780792266000,152.0,0.00029742,120]
[424367980,1780792350000,500.0,0.00027499,120]
[424367982,1780792541000,152.0,0.00029766,120]
[424367983,1780792571000,900.0,0.00030136,120]
[424367984,1780792831000,444.14590453,0.00026237,120]
[424367985,1780792832000,444.14590453,0.00026383,120]
[424367986,1780792841000,152.0,0.00029741,120]
[424367994,1780793142000,152.0,0.00029541,120]
[424368001,1780793432000,-1346.83,0.0001244,2]
[424368013,1780793438000,-301.30952051,0.00012456,2]
[424368012,1780793438000,-382.76658464,0.0001244,2]
[424368011,1780793438000,-270.40341536,0.0001244,2]
[424368039,1780793440000,-732.38704316,0.00012698,2]
[424368038,1780793440000,-2046.78,0.00012599,2]
[424368036,1780793440000,-150.0,0.0001258,2]
[424368035,1780793440000,-156.84,0.00012556,2]
[424368037,1780793440000,-215.80795776,0.00012588,2]
[424368034,1780793440000,-640.92241306,0.00012456,2]
[424368046,1780793443000,-269.53870786,0.00012624,2]
[424368058,1780793446000,-925.0,0.00012698,2]
[424368056,1780793446000,-3140.36302337,0.00012624,2]
[424368055,1780793446000,-1572.40000001,0.00012624,2]
[424368054,1780793446000,-2478.17968745,0.00012624,2]
[424368053,1780793446000,-385.49803038,0.00012624,2]
[424368057,1780793446000,-18118.67250501,0.00012698,2]
[424368060,1780793448000,152.0,0.00029502,120]
[424368093,1780794631000,-742.6323084,0.00012,2]
[424368095,1780794631000,-156.84,0.00012193,2]
[424368096,1780794631000,-1555.96,0.00012245,2]
[424368094,1780794631000,-2000.0,0.00012059,2]
[424368092,1780794631000,-310.32248538,0.00011624,2]
[424368099,1780794631000,-150.0,0.00012397,2]
[424368101,1780794631000,-212.1525198,0.00012397,2]
[424368098,1780794631000,-7189.06521028,0.00012315,2]
[424368100,1780794631000,-500.0,0.00012397,2]
[424368102,1780794631000,-38502.8467595,0.00012398,2]
[424368103,1780794631000,-6047.38970563,0.00012398,2]
[424368097,1780794631000,-150.0,0.00012301,2]
[424368107,1780794637000,-484.1453758,0.00012398,2]
[424368106,1780794637000,-667.96197469,0.00012398,2]
[424368105,1780794637000,-2826.33,0.00012398,2]
[424368166,1780794641000,-1528.55529801,0.00012398,2]
[424368184,1780794642000,-1672.9344986,0.00012398,2]
[424368185,1780794643000,-766.07755576,0.00012398,2]
[424368186,1780794643000,-652.0,0.00012398,2]
[424368204,1780794646000,-2645.78422555,0.00012398,2]
[424368203,1780794646000,-2966.71144329,0.00012398,2]
[424368227,1780794941000,4128.0,0.00030137,120]
[424368233,1780795740000,2000.0,0.00030136,120]
[424368238,1780795831000,-164.94,0.00010935,2]
[424368235,1780795831000,-865.05,0.00010668,2]
[424368237,1780795831000,-252.5368803,0.00010935,2]
[424368236,1780795831000,-186.22499167,0.00010935,2]
[424368242,1780795831000,-2247.54287663,0.00011019,2]
[424368245,1780795831000,-820.93445811,0.00011038,2]
[424368244,1780795831000,-1274.25,0.00011034,2]
[424368240,1780795831000,-500.5236456,0.00011019,2]
[424368303,1780795838000,-163.0,0.00011538,2]
[424368305,1780795838000,-163.0,0.00011648,2]
[424368299,1780795838000,-150.0,0.00011421,2]
[424368295,1780795838000,-1232.30776203,0.00011202,2]
[424368296,1780795838000,-163.0,0.00011209,2]
[424368300,1780795838000,-182.02674801,0.00011421,2]
[424368301,1780795838000,-163.0,0.00011429,2]
[424368297,1780795838000,-163.0,0.00011319,2]
[424368307,1780795838000,-163.0,0.00011758,2]
[424368291,1780795838000,-215.80795776,0.00011057,2]
[424368293,1780795838000,-166.66,0.00011172,2]
[424368302,1780795838000,-1895.02,0.00011471,2]
[424368292,1780795838000,-163.0,0.00011099,2]
[424368290,1780795838000,-186.61,0.00011047,2]
[424368289,1780795838000,-179.06554189,0.00011038,2]
[424368298,1780795838000,-163.61,0.00011421,2]
[424368313,1780795838000,-6737.21502684,0.00012002,2]
[424368294,1780795838000,-767.69223797,0.00011202,2]
[424368312,1780795838000,-2348.97720924,0.00012002,2]
[424368328,1780795838000,-470.3606827,0.00012102,2]
[424368330,1780795838000,-874.99999999,0.00012102,2]
[424368333,1780795838000,-1125.241628,0.00012102,2]
[424368326,1780795838000,-281.6393173,0.00012102,2]
[424368335,1780795838000,-1122.70891671,0.00012102,2]
[424368315,1780795838000,-250.0,0.00012028,2]
[424368324,1780795838000,-3163.28327022,0.00012102,2]
[424368322,1780795838000,-23643.30321424,0.00012102,2]
[424368318,1780795838000,-1895.02,0.00012044,2]
[424368317,1780795838000,-250.0,0.00012028,2]
[424368304,1780795838000,-200.0,0.00011621,2]
[424368314,1780795838000,-13487.10077015,0.00012002,2]
[424368311,1780795838000,-197.09926949,0.00012002,2]
[424368310,1780795838000,-150.0,0.00011978,2]
[424368306,1780795838000,-1895.02,0.00011757,2]
[424368308,1780795838000,-163.0,0.00011868,2]
[424368309,1780795838000,-163.0,0.00011978,2]
[424368320,1780795838000,-169.0,0.00012088,2]
[424368340,1780795840000,-462.18336749,0.00012102,2]
[424368339,1780795840000,-3539.62665068,0.00012102,2]
[424368341,1780795841000,-884.05639917,0.00012102,2]
[424368350,1780795848000,-282.32835352,0.00012002,2]
[424368351,1780795848000,-2097.38034648,0.00012002,2]
[424368354,1780795848000,-1659.07205933,0.00012102,2]
[424368352,1780795848000,-120850.10260208,0.00012102,2]
[424368356,1780795848000,-3074.05,0.00012102,2]
[424368357,1780795848000,-347.50999999,0.00012102,2]
[424368359,1780795848000,-2216.07317504,0.00012102,2]
[424368358,1780795848000,-447.09448422,0.00012102,2]
[424368355,1780795848000,-1421.5415402,0.00012102,2]
[424368360,1780795849000,-942.0,0.00012102,2]
[424368366,1780795865000,595.15892797,0.0003013,120]
[424368370,1780796018000,198.0,0.00030137,120]
[424368371,1780796591000,334.23737358,0.00030137,120]
[424368386,1780796834000,-758.0,0.00011681,2]
[424368385,1780796834000,-804.7788125,0.00011578,2]
[424368384,1780796834000,-758.0,0.00011396,2]
[424368382,1780796834000,-372.34029194,0.00011302,2]
[424368381,1780796834000,-383.90510149,0.00011302,2]
[424368383,1780796834000,-215.80795776,0.0001135,2]
[424368376,1780796834000,-2000.0,0.00011062,2]
[424368380,1780796834000,-804.77881252,0.00011295,2]
[424368377,1780796834000,-637.12,0.00011111,2]
[424368378,1780796834000,-250.0,0.00011202,2]
[424368375,1780796834000,-250.0,9.731e-05,2]
[424368374,1780796834000,-179.49,8.846e-05,2]
[424368388,1780796834000,-2553.3873,0.00011802,2]
[424368379,1780796834000,-156.84,0.00011293,2]
[424368389,1780796834000,-804.7788125,0.00011861,2]
[424368387,1780796834000,-2500.0,0.00011802,2]
[424368390,1780796834000,-500.0,0.000119,2]
[424368405,1780796834000,-500.0,0.000119,2]
[424368404,1780796834000,-500.0,0.000119,2]
[424368402,1780796834000,-500.0,0.000119,2]
[424368401,1780796834000,-500.0,0.000119,2]
[424368403,1780796834000,-500.0,0.000119,2]
[424368400,1780796834000,-500.0,0.000119,2]
[424368399,1780796834000,-500.0,0.000119,2]
[424368391,1780796834000,-500.0,0.000119,2]
[424368397,1780796834000,-500.0,0.000119,2]
[424368396,1780796834000,-264.17215223,0.000119,2]
[424368395,1780796834000,-161.42388534,0.000119,2]
[424368394,1780796834000,-500.0,0.000119,2]
[424368393,1780796834000,-432.92785178,0.000119,2]
[424368392,1780796834000,-500.0,0.000119,2]
[424368406,1780796834000,-500.0,0.000119,2]
[424368398,1780796834000,-500.0,0.000119,2]
[424368408,1780796835000,-500.0,0.000119,2]
[424368409,1780796835000,-399.44311847,0.000119,2]
[424368411,1780796835000,-500.0,0.000119,2]
[424368407,1780796835000,-500.0,0.000119,2]
[424368412,1780796835000,-500.0,0.000119,2]
[424368413,1780796835000,-500.0,0.000119,2]